fUSD/lending_fUSD_20250404
["ID","MTS","AMOUNT","RATE_DAILY","PERIOD"]
[357136148,1743781831805,-112.59887662,0.00047329,7]
[357136158,1743781837977,-37.40112338,0.00047329,7]
[357136159,1743781837986,-535.6,0.00047329,2]
[357136160,1743781837996,-173.05071546,0.00047403,120]
[357136161,1743781838005,-268.75,0.00047483,2]
[357136162,1743781838015,-1000.0,0.00047534,2]
[357136163,1743781838025,-150.0,0.00047556,7]
[357136164,1743781838035,-155.46,0.00047579,2]
[357136165,1743781838045,-992.39928572,0.00047682,2]
[357136166,1743781838055,-1782.0,0.000479,2]
[357136167,1743781838065,-182.978,0.000479,81]
[357136168,1743781838075,-150.0,0.00047966,7]
[357136169,1743781838089,-401.0,0.00047967,5]
[357136170,1743781838098,-629.74210791,0.00047967,8]
[357136171,1743781838108,-23900.0,0.00047968,2]
[357136172,1743781838117,-30513.28800118,0.00048,90]
[357136173,1743781838128,-264013.28800118,0.00048,90]
[357136174,1743781838137,-748.11978365,0.00048009,15]
[357136175,1743781838147,-150.0,0.00048109,7]
[357136176,1743781838156,-150.06,0.00048208,2]
[357136177,1743781838166,-150.06,0.00048268,2]
[357136178,1743781838175,-748.11978357,0.00048302,15]
[357136179,1743781838184,-150.06,0.00048328,2]
[357136180,1743781838194,-360.61,0.00048359,2]
[357136181,1743781838203,-150.06,0.00048388,2]
[357136182,1743781838212,-171.54913847,0.0004839,28]
[357136183,1743781838222,-1026.52286702,0.0004839,20]
[357136184,1743781838232,-598.29,0.00048395,7]
[357136185,1743781838241,-150.06,0.00048448,2]
[357136186,1743781838251,-150.0,0.00048455,7]
[357136187,1743781838260,-500.0,0.00048473,2]
[357136188,1743781838270,-500.0,0.00048473,10]
[357136189,1743781838280,-463.7251941,0.00048473,2]
[357136190,1743781838290,-150.43,0.0004848,2]
[357136191,1743781838300,-150.43,0.0004848,2]
[357136192,1743781838310,-150.43,0.0004848,2]
[357136193,1743781838319,-150.43,0.0004848,2]
[357136194,1743781838331,-137736.97944354,0.0004849,4]
[357136195,1743781838472,-8500.0,0.0004849,4]
[357136196,1743781838485,-756.79311258,0.0004849,4]
[357136197,1743781838499,-3915.0964487,0.0004849,4]
[357136198,1743781838515,-415.0,0.0004849,4]
[357136199,1743781838527,-193488.95469518,0.0004849,4]
[357136200,1743781838537,-360595.71064376,0.0004849,4]
[357136201,1743781838572,-13515.64726124,0.0004849,4]
[357136202,1743781838586,-487.0,0.0004849,2]
[357136203,1743781838595,-150.43,0.0004849,2]
[357136204,1743781838606,-150.43,0.0004849,2]
[357136205,1743781838615,-150.43,0.0004849,2]
[357136206,1743781838625,-150.43,0.0004849,2]
[357136207,1743781838635,-150.43,0.0004849,2]
[357136208,1743781838644,-150.43,0.0004849,2]
[357136209,1743781838653,-150.43,0.0004849,2]
[357136210,1743781838663,-150.43,0.0004849,2]
[357136211,1743781838673,-150.43,0.0004849,2]
[357136212,1743781838683,-150.43,0.0004849,2]
[357136213,1743781838693,-183.94814315,0.0004849,7]
[357136214,1743781838702,-162.58492136,0.000485,14]
[357136215,1743781838711,-34316.22753577,0.000485,2]
[357136216,1743781838723,-5702.74,0.000485,2]
[357136220,1743781839632,-213.76415767,0.000485,14]
[357136221,1743781839644,-1629.96409629,0.000485,14]
[357136222,1743781839655,-431.63,0.000485,14]
[357136223,1743781839666,-41223.88789814,0.000485,14]
[357136224,1743781839676,-404750.11183928,0.000485,2]
[357136225,1743781839687,-682118.18039602,0.000485,2]
[357136226,1743781839697,-351247.99086697,0.000485,2]
[357136228,1743781839707,-5377.05,0.000485,14]
[357136230,1743781839717,-748.11978357,0.00048596,15]
[357136232,1743781839726,-150.0,0.00048627,7]
[357136233,1743781839736,-202.94,0.00048678,120]
[357136234,1743781839746,-150.0,0.0004868,7]
[357136235,1743781839755,-250.0,0.00048702,120]
[357136236,1743781839764,-402.7,0.00048865,2]
[357136237,1743781839774,-155.83,0.00048877,2]
[357136238,1743781839784,-748.11978357,0.00048889,15]
[357136241,1743781839911,-1114.71213731,0.00048979,30]
[357136242,1743781839921,-1248.40446992,0.00048979,30]
[357136243,1743781839930,-850.2197458,0.00048984,4]
[357136244,1743781839939,-150.0,0.00048989,120]
[357136245,1743781839949,-748.11978357,0.00049183,15]
[357136246,1743781839958,-153.07,0.000492,45]
[357136248,1743781839968,-153.07,0.000492,45]
[357136249,1743781839977,-153.07,0.000492,45]
[357136250,1743781839987,-153.07,0.000492,45]
[357136251,1743781839996,-213.2909,0.00049215,2]
[357136252,1743781840006,-150.0,0.0004928,7]
[357136253,1743781840015,-623.05,0.00049296,2]
[357136254,1743781840025,-150.43,0.00049305,120]
[357136255,1743781840034,-200.0,0.00049315,120]
[357136256,1743781840043,-187.207994,0.00049315,120]
[357136257,1743781840053,-200.0,0.00049315,2]
[357136258,1743781840062,-552.93,0.00049315,120]
[357136259,1743781840071,-500.0,0.00049315,120]
[357136260,1743781840082,-500.0,0.00049315,120]
[357136261,1743781840091,-500.0,0.00049315,120]
[357136262,1743781840101,-500.0,0.00049315,120]
[357136263,1743781840110,-560.25,0.00049315,120]
[357136264,1743781840120,-561.00948767,0.00049315,120]
[357136265,1743781840129,-561.00948767,0.00049315,120]
[357136266,1743781840138,-561.00948767,0.00049315,120]
[357136267,1743781840148,-561.00948767,0.00049315,120]
[357136268,1743781840157,-561.00948767,0.00049315,120]
[357136269,1743781840167,-561.00948767,0.00049315,120]
[357136270,1743781840177,-561.00948767,0.00049315,120]
[357136271,1743781840186,-561.00948767,0.00049315,120]
[357136272,1743781840196,-561.00948767,0.00049315,120]
[357136273,1743781840205,-561.00948767,0.00049315,120]
[357136274,1743781840218,-561.00948767,0.00049315,120]
[357136275,1743781840227,-561.00948767,0.00049315,120]
[357136276,1743781840237,-561.00948767,0.00049315,120]
[357136277,1743781840246,-561.00948767,0.00049315,120]
[357136278,1743781840256,-561.00948767,0.00049315,120]
[357136279,1743781840266,-561.00948767,0.00049315,120]
[357136280,1743781840275,-561.00948767,0.00049315,120]
[357136281,1743781840285,-561.00948767,0.00049315,120]
[357136282,1743781840295,-561.00948767,0.00049315,120]
[357136283,1743781840305,-561.00948767,0.00049315,120]
[357136284,1743781840315,-561.00948767,0.00049315,120]
[357136285,1743781840324,-561.00948767,0.00049315,120]
[357136286,1743781840335,-561.00948767,0.00049315,120]
[357136287,1743781840345,-561.00948767,0.00049315,120]
[357136288,1743781840355,-561.00948767,0.00049315,120]
[357136289,1743781840364,-561.00948767,0.00049315,120]
[357136290,1743781840374,-561.00948767,0.00049315,120]
[357136291,1743781840384,-561.00948767,0.00049315,120]
[357136292,1743781840394,-561.00948767,0.00049315,120]
[357136293,1743781840403,-561.00948767,0.00049315,120]
[357136294,1743781840413,-561.00948767,0.00049315,120]
[357136295,1743781840426,-561.00948767,0.00049315,120]
[357136296,1743781840437,-561.00948767,0.00049315,120]
[357136297,1743781840447,-561.00948767,0.00049315,120]
[357136298,1743781840456,-561.00948767,0.00049315,120]
[357136300,1743781840466,-561.00948767,0.00049315,120]
[357136302,1743781840475,-561.00948767,0.00049315,120]
[357136304,1743781840485,-561.00948767,0.00049315,120]
[357136306,1743781840495,-561.00948767,0.00049315,120]
[357136307,1743781840505,-561.00948767,0.00049315,120]
[357136308,1743781840515,-561.00948767,0.00049315,120]
[357136309,1743781840525,-561.00948767,0.00049315,120]
[357136311,1743781840534,-561.00948767,0.00049315,120]
[357136313,1743781840544,-561.00948767,0.00049315,120]
[357136315,1743781840554,-561.00948767,0.00049315,120]
[357136317,1743781840563,-561.00948767,0.00049315,120]
[357136319,1743781840572,-561.00948767,0.00049315,120]
[357136321,1743781840582,-561.00948767,0.00049315,120]
[357136323,1743781840592,-561.00948767,0.00049315,120]
[357136325,1743781840601,-561.00948767,0.00049315,120]
[357136327,1743781840610,-500.0,0.00049315,120]
[357136328,1743781840619,-500.0,0.00049315,120]
[357136329,1743781840628,-556.69403008,0.00049315,120]
[357136330,1743781840638,-556.69403008,0.00049315,120]
[357136331,1743781840647,-556.69403008,0.00049315,120]
[357136332,1743781840656,-556.69403008,0.00049315,120]
[357136333,1743781840666,-556.69403008,0.00049315,120]
[357136334,1743781840675,-556.69403008,0.00049315,120]
[357136335,1743781840685,-556.69403008,0.00049315,120]
[357136336,1743781840694,-556.69403008,0.00049315,120]
[357136337,1743781840703,-556.69403008,0.00049315,120]
[357136338,1743781840714,-556.69403008,0.00049315,120]
[357136339,1743781840723,-556.69403008,0.00049315,120]
[357136340,1743781840733,-556.69403008,0.00049315,120]
[357136341,1743781840742,-556.69403008,0.00049315,120]
[357136342,1743781840752,-556.69403008,0.00049315,120]
[357136343,1743781840761,-556.69403008,0.00049315,120]
[357136344,1743781840771,-556.69403008,0.00049315,120]
[357136345,1743781840781,-556.69403008,0.00049315,120]
[357136346,1743781840790,-556.69403008,0.00049315,120]
[357136347,1743781840800,-556.69403008,0.00049315,120]
[357136348,1743781840809,-556.69403008,0.00049315,120]
[357136349,1743781840818,-556.69403008,0.00049315,120]
[357136350,1743781840828,-556.69403008,0.00049315,120]
[357136351,1743781840842,-556.69403008,0.00049315,120]
[357136352,1743781840851,-556.69403008,0.00049315,120]
[357136353,1743781840862,-556.69403008,0.00049315,120]
[357136354,1743781840872,-556.69403008,0.00049315,120]
[357136355,1743781840882,-556.69403008,0.00049315,120]
[357136356,1743781840892,-556.69403008,0.00049315,120]
[357136357,1743781840904,-556.69403008,0.00049315,120]
[357136358,1743781840920,-556.69403008,0.00049315,120]
[357136359,1743781840935,-556.69403008,0.00049315,120]
[357136360,1743781840947,-571.60036249,0.00049315,120]
[357136361,1743781840959,-500.0,0.00049315,120]
[357136362,1743781840973,-556.69403009,0.00049315,120]
[357136363,1743781840988,-556.69403009,0.00049315,120]
[357136364,1743781841001,-556.69403009,0.00049315,120]
[357136365,1743781841014,-556.69403009,0.00049315,120]
[357136366,1743781841027,-556.69403009,0.00049315,120]
[357136367,1743781841039,-556.69403009,0.00049315,120]
[357136368,1743781841051,-556.69403009,0.00049315,120]
[357136369,1743781841061,-556.69403009,0.00049315,120]
[357136370,1743781841074,-500.0,0.00049315,120]
[357136371,1743781841088,-1334.22,0.00049315,10]
[357136372,1743781841101,-500.0,0.00049315,120]
[357136373,1743781841114,-282.49297942,0.00049315,7]
[357136374,1743781841127,-500.0,0.00049315,30]
[357136375,1743781841140,-500.0,0.00049315,120]
[357136376,1743781841152,-781.66,0.00049315,120]
[357136377,1743781841167,-500.0,0.00049315,120]
[357136378,1743781841179,-2000.0,0.00049315,2]
[357136379,1743781841193,-500.0,0.00049315,2]
[357136380,1743781841205,-500.0,0.00049315,120]
[357136381,1743781841217,-500.0,0.00049315,120]
[357136382,1743781841229,-500.0,0.00049315,120]
[357136383,1743781841243,-500.0,0.00049315,120]
[357136384,1743781841256,-500.0,0.00049315,120]
[357136385,1743781841268,-2418.51,0.00049315,2]
[357136386,1743781841280,-732.85,0.00049315,120]
[357136387,1743781841291,-500.0,0.00049315,7]
[357136388,1743781841302,-500.0,0.00049315,120]
[357136389,1743781841315,-857.64,0.00049315,120]
[357136390,1743781841333,-500.0,0.00049315,120]
[357136391,1743781841343,-500.0,0.00049315,120]
[357136392,1743781841354,-500.0,0.00049315,120]
[357136393,1743781841365,-500.0,0.00049315,120]
[357136394,1743781841378,-500.0,0.00049315,120]
[357136395,1743781841391,-500.0,0.00049315,120]
[357136396,1743781841404,-500.0,0.00049315,120]
[357136397,1743781841416,-500.0,0.00049315,120]
[357136398,1743781841430,-500.0,0.00049315,120]
[357136399,1743781841442,-553.3,0.00049315,120]
[357136400,1743781841454,-165.31454299,0.00049315,120]
[357136401,1743781841466,-421.86540039,0.00049315,120]
[357136402,1743781841478,-500.0,0.00049315,120]
[357136403,1743781841492,-500.0,0.00049315,120]
[357136404,1743781841505,-500.0,0.00049315,120]
[357136405,1743781841726,-1297.48,0.00049315,120]
[357136406,1743781841739,-500.0,0.00049315,120]
[357136407,1743781841751,-500.0,0.00049315,120]
[357136408,1743781841763,-500.0,0.00049315,120]
[357136409,1743781841775,-500.0,0.00049315,120]
[357136410,1743781841787,-500.0,0.00049315,120]
[357136411,1743781841799,-500.0,0.00049315,120]
[357136412,1743781841811,-500.0,0.00049315,120]
[357136413,1743781841823,-500.0,0.00049315,120]
[357136414,1743781841838,-500.0,0.00049315,120]
[357136415,1743781841850,-500.0,0.00049315,120]
[357136416,1743781841861,-1334.36,0.00049315,120]
[357136417,1743781841873,-500.0,0.00049315,120]
[357136418,1743781841885,-500.0,0.00049315,120]
[357136419,1743781841898,-500.0,0.00049315,120]
[357136420,1743781841910,-500.0,0.00049315,120]
[357136421,1743781841922,-500.0,0.00049315,120]
[357136422,1743781841934,-500.0,0.00049315,120]
[357136423,1743781841945,-453.61513526,0.00049315,120]
[357136424,1743781841957,-537.07,0.00049315,120]
[357136425,1743781841969,-300.0,0.00049315,120]
[357136426,1743781841981,-500.0,0.00049315,120]
[357136427,1743781841993,-500.0,0.00049315,120]
[357136428,1743781842005,-500.0,0.00049315,120]
[357136429,1743781842017,-500.0,0.00049315,2]
[357136430,1743781842029,-500.0,0.00049315,120]
[357136431,1743781842042,-500.0,0.00049315,120]
[357136432,1743781842054,-500.0,0.00049315,120]
[357136433,1743781842066,-500.0,0.00049315,120]
[357136434,1743781842079,-246.92801195,0.00049315,120]
[357136435,1743781842096,-500.0,0.00049315,120]
[357136436,1743781842108,-500.0,0.00049315,120]
[357136437,1743781842120,-500.0,0.00049315,100]
[357136438,1743781842132,-500.0,0.00049315,120]
[357136439,1743781842144,-173.05071546,0.00049405,120]
[357136440,1743781842157,-748.11978357,0.00049476,15]
[357136441,1743781842167,-3341.14042156,0.0004948,2]
[357136442,1743781842177,-500.0,0.00049588,120]
[357136443,1743781842187,-623.97,0.00049588,120]
[357136444,1743781842197,-500.0,0.00049588,120]
[357136445,1743781842206,-290.88829129,0.00049588,120]
[357136446,1743781842217,-500.0,0.00049588,7]
[357136447,1743781842227,-295.34527568,0.00049588,120]
[357136448,1743781842237,-500.0,0.00049588,120]
[357136449,1743781842247,-500.0,0.00049588,120]
[357136450,1743781842258,-500.0,0.00049588,120]
[357136451,1743781842270,-500.0,0.00049588,120]
[357136452,1743781842280,-500.0,0.00049588,120]
[357136453,1743781842291,-500.0,0.00049588,120]
[357136454,1743781842301,-540.93,0.00049588,120]
[357136455,1743781842311,-509.03917048,0.00049588,120]
[357136456,1743781842322,-1894.82,0.00049588,7]
[357136457,1743781842332,-729.63,0.00049588,120]
[357136458,1743781842514,-910.78,0.00049588,120]
[357136459,1743781842532,-361.43697521,0.00049588,120]
[357136460,1743781842545,-500.0,0.00049588,120]
[357136461,1743781842555,-946.75,0.00049588,120]
[357136463,1743781842564,-1029.62,0.00049588,120]
[357136464,1743781842574,-3872.32,0.00049588,120]
[357136465,1743781842588,-500.0,0.00049588,120]
[357136466,1743781842598,-500.0,0.00049588,120]
[357136467,1743781842608,-500.0,0.00049588,120]
[357136468,1743781842618,-2067.14,0.00049588,120]
[357136469,1743781842627,-552.93,0.00049589,120]
[357136471,1743781842637,-500.0,0.00049589,120]
[357136473,1743781842648,-500.0,0.00049589,120]
[357136474,1743781842658,-560.25,0.00049589,120]
[357136475,1743781842668,-500.0,0.00049589,120]
[357136476,1743781842679,-500.0,0.00049589,120]
[357136477,1743781842690,-500.0,0.00049589,120]
[357136478,1743781842700,-500.0,0.00049589,120]
[357136479,1743781842711,-1334.22,0.00049589,10]
[357136480,1743781842721,-500.0,0.00049589,120]
[357136482,1743781842732,-500.0,0.00049589,30]
[357136484,1743781842742,-422.59834766,0.00049589,120]
[357136486,1743781842753,-781.66,0.00049589,120]
[357136487,1743781842763,-500.0,0.00049589,120]
[357136488,1743781842775,-2000.0,0.00049589,2]
[357136489,1743781842784,-500.0,0.00049589,2]
[357136490,1743781842795,-500.0,0.00049589,120]
[357136491,1743781842805,-500.0,0.00049589,120]
[357136492,1743781842814,-500.0,0.00049589,120]
[357136493,1743781842823,-500.0,0.00049589,120]
[357136494,1743781842836,-500.0,0.00049589,120]
[357136495,1743781842847,-2418.51,0.00049589,2]
[357136496,1743781842857,-732.85,0.00049589,120]
[357136497,1743781842867,-500.0,0.00049589,7]
[357136498,1743781842878,-500.0,0.00049589,120]
[357136499,1743781842887,-857.64,0.00049589,120]
[357136500,1743781842897,-500.0,0.00049589,120]
[357136501,1743781842907,-500.0,0.00049589,120]
[357136502,1743781842917,-500.0,0.00049589,120]
[357136503,1743781842927,-500.0,0.00049589,120]
[357136504,1743781842937,-500.0,0.00049589,120]
[357136505,1743781842946,-500.0,0.00049589,120]
[357136506,1743781842956,-500.0,0.00049589,120]
[357136507,1743781842966,-500.0,0.00049589,120]
[357136508,1743781842975,-500.0,0.00049589,120]
[357136509,1743781842985,-553.3,0.00049589,120]
[357136510,1743781842994,-500.0,0.00049589,120]
[357136511,1743781843004,-1297.48,0.00049589,120]
[357136512,1743781843013,-1334.36,0.00049589,120]
[357136513,1743781843023,-537.07,0.00049589,120]
[357136514,1743781843048,-500.0,0.00049589,120]
[357136515,1743781843059,-500.0,0.00049589,120]
[357136516,1743781843069,-500.0,0.00049589,120]
[357136517,1743781843080,-500.0,0.00049589,2]
[357136518,1743781843093,-500.0,0.00049589,120]
[357136519,1743781843103,-500.0,0.00049589,120]
[357136520,1743781843114,-628.34617746,0.00049589,120]
[357136521,1743781843124,-500.0,0.00049589,100]
[357136522,1743781843134,-160.55909828,0.00049636,10]
[357136523,1743781843144,-748.11978357,0.0004977,15]
[357136524,1743781843154,-150.0,0.00049833,7]
[357136525,1743781843164,-150.43,0.00049852,120]
[357136526,1743781843173,-500.0,0.00049861,120]
[357136527,1743781843183,-157.6028606,0.00049861,7]
[357136528,1743781843193,-500.0,0.00049861,120]
[357136529,1743781843203,-649.99,0.00049861,120]
[357136530,1743781843214,-500.0,0.00049861,2]
[357136531,1743781843224,-500.0,0.00049861,10]
[357136532,1743781843235,-500.0,0.00049861,120]
[357136533,1743781843244,-1510.8,0.00049861,120]
[357136534,1743781843254,-500.0,0.00049861,120]
[357136536,1743781843264,-500.0,0.00049861,120]
[357136537,1743781843273,-500.0,0.00049861,120]
[357136538,1743781843283,-500.0,0.00049861,120]
[357136539,1743781843293,-500.0,0.00049862,120]
[357136541,1743781843303,-173.43246538,0.00049862,120]
[357136542,1743781843312,-500.0,0.00049862,120]
[357136543,1743781843322,-499.91409382,0.00049862,2]
[357136544,1743781843335,-500.0,0.00049862,120]
[357136545,1743781843344,-457.53066939,0.00049862,120]
[357136546,1743781843354,-500.07009579,0.00049862,2]
[357136547,1743781843364,-500.0,0.00049862,120]
[357136548,1743781843374,-808.68,0.00049862,120]
[357136549,1743781843384,-500.0,0.00049862,120]
[357136550,1743781843394,-391.44017559,0.00049862,120]
[357136551,1743781843404,-500.0,0.00049862,120]
[357136552,1743781843413,-500.0,0.00049862,120]
[357136553,1743781843423,-500.0,0.00049862,120]
[357136554,1743781843435,-500.0,0.00049862,120]
[357136555,1743781843445,-500.0,0.00049862,120]
[357136556,1743781843455,-500.0,0.00049862,30]
[357136557,1743781843464,-500.0,0.00049862,120]
[357136558,1743781843474,-518.70210861,0.00049862,120]
[357136559,1743781843484,-500.0,0.00049862,120]
[357136560,1743781843494,-519.62550078,0.00049862,120]
[357136561,1743781843504,-514.08685525,0.00049862,120]
[357136562,1743781843514,-500.0,0.00049862,120]
[357136563,1743781843524,-512.30996005,0.00049862,120]
[357136564,1743781843534,-511.92478326,0.00049862,120]
[357136565,1743781843544,-531.17748315,0.00049862,120]
[357136566,1743781843554,-535.82132226,0.00049862,120]
[357136567,1743781843563,-535.32284234,0.00049862,120]
[357136568,1743781843573,-500.0,0.00049862,120]
[357136569,1743781843585,-500.0,0.00049862,120]
[357136570,1743781843594,-516.54892879,0.00049862,120]
[357136571,1743781843605,-500.0,0.00049862,120]
[357136572,1743781843615,-537.73872909,0.00049862,120]
[357136573,1743781843625,-534.61204394,0.00049862,120]
[357136574,1743781843635,-500.0,0.00049862,120]
[357136575,1743781843645,-500.0,0.00049862,120]
[357136576,1743781843655,-511.58633939,0.00049862,120]
[357136577,1743781843665,-500.0,0.00049862,120]
[357136578,1743781843674,-535.96303777,0.00049862,120]
[357136579,1743781843684,-539.74495449,0.00049862,120]
[357136580,1743781843694,-500.0,0.00049862,120]
[357136581,1743781843704,-518.37421018,0.00049862,120]
[357136582,1743781843714,-532.42613284,0.00049862,120]
[357136583,1743781843724,-500.0,0.00049862,120]
[357136584,1743781843734,-500.0,0.00049862,120]
[357136585,1743781843745,-522.36868376,0.00049862,120]
[357136586,1743781843755,-500.0,0.00049862,120]
[357136587,1743781843765,-500.0,0.00049862,120]
[357136588,1743781843774,-500.75066741,0.00049862,120]
[357136589,1743781843784,-500.0,0.00049862,120]
[357136590,1743781843793,-504.99706085,0.00049862,120]
[357136591,1743781843804,-523.46865996,0.00049862,120]
[357136592,1743781843814,-511.03341025,0.00049862,120]
[357136593,1743781843825,-527.27183644,0.00049862,120]
[357136594,1743781843837,-504.83517397,0.00049862,120]
[357136595,1743781843847,-500.0,0.00049862,120]
[357136596,1743781843857,-505.84842263,0.00049862,120]
[357136597,1743781843867,-500.0,0.00049862,120]
[357136598,1743781843877,-500.0,0.00049862,120]
[357136599,1743781843887,-547.7109419,0.00049862,120]
[357136600,1743781843896,-500.0,0.00049862,120]
[357136601,1743781843906,-673.73,0.00049862,120]
[357136602,1743781843916,-500.0,0.00049862,120]
[357136603,1743781843926,-529.34797569,0.00049862,120]
[357136604,1743781843936,-516.85612387,0.00049862,120]
[357136605,1743781843946,-500.0,0.00049862,120]
[357136606,1743781843955,-527.65602283,0.00049862,120]
[357136607,1743781843964,-500.0,0.00049862,120]
[357136608,1743781843974,-500.0,0.00049862,120]
[357136609,1743781843983,-566.72128976,0.00049862,120]
[357136610,1743781843993,-588.76405966,0.00049862,120]
[357136611,1743781844002,-514.74179607,0.00049862,2]
[357136612,1743781844012,-500.0,0.00049862,120]
[357136613,1743781844022,-500.0,0.00049862,120]
[357136614,1743781844032,-571.04520507,0.00049862,120]
[357136615,1743781844042,-500.0,0.00049862,120]
[357136616,1743781844052,-500.0,0.00049862,120]
[357136617,1743781844062,-500.0,0.00049862,120]
[357136618,1743781844072,-500.0,0.00049862,120]
[357136619,1743781844085,-504.95692414,0.00049862,120]
[357136620,1743781844095,-508.58921573,0.00049862,120]
[357136621,1743781844105,-559.53371928,0.00049862,120]
[357136622,1743781844115,-500.0,0.00049862,120]
[357136623,1743781844125,-500.0,0.00049862,120]
[357136624,1743781844135,-222.15025898,0.00049862,120]
[357136625,1743781844144,-501.22758794,0.00049862,120]
[357136626,1743781844154,-502.84817937,0.00049862,120]
[357136627,1743781844165,-500.0,0.00049862,120]
[357136628,1743781844174,-500.0,0.00049862,10]
[357136629,1743781844183,-623.26723545,0.00049862,120]
[357136630,1743781844193,-500.0,0.00049862,120]
[357136631,1743781844203,-667.1,0.00049862,120]
[357136632,1743781844213,-500.0,0.00049862,12]
[357136633,1743781844224,-500.0,0.00049862,120]
[357136634,1743781844234,-500.0,0.00049862,120]
[357136635,1743781844243,-500.0,0.00049862,30]
[357136636,1743781844253,-535.46286945,0.00049862,120]
[357136637,1743781844262,-500.0,0.00049862,120]
[357136638,1743781844271,-500.0,0.00049862,120]
[357136639,1743781844281,-500.0,0.00049862,120]
[357136640,1743781844291,-500.0,0.00049862,120]
[357136641,1743781844301,-268.40058625,0.00049862,120]
[357136642,1743781844311,-323.09107961,0.00049862,120]
[357136643,1743781844321,-623.97,0.00049862,120]
[357136644,1743781844331,-500.0,0.00049862,120]
[357136645,1743781844348,-500.0,0.00049862,120]
[357136646,1743781844358,-500.0,0.00049862,120]
[357136647,1743781844368,-220.07888574,0.00049862,120]
[357136648,1743781844378,-558.84,0.00049862,120]
[357136649,1743781844388,-500.0,0.00049862,120]
[357136650,1743781844398,-500.0,0.00049862,7]
[357136651,1743781844408,-500.0,0.00049862,120]
[357136652,1743781844421,-500.0,0.00049862,120]
[357136653,1743781844431,-538.24913578,0.00049862,120]
[357136654,1743781844441,-500.0,0.00049862,120]
[357136655,1743781844451,-534.83495399,0.00049862,120]
[357136656,1743781844462,-500.0,0.00049862,120]
[357136657,1743781844472,-519.99761517,0.00049862,120]
[357136658,1743781844482,-615.46045509,0.00049862,120]
[357136659,1743781844494,-501.97984464,0.00049862,120]
[357136660,1743781844504,-500.0,0.00049862,120]
[357136661,1743781844515,-500.0,0.00049862,120]
[357136662,1743781844526,-500.0,0.00049862,120]
[357136663,1743781844536,-500.0,0.00049862,120]
[357136664,1743781844547,-500.0,0.00049862,120]
[357136665,1743781844557,-500.0,0.00049862,120]
[357136666,1743781844568,-500.0,0.00049862,120]
[357136667,1743781844578,-500.0,0.00049862,120]
[357136668,1743781844592,-500.0,0.00049862,120]
[357136669,1743781844603,-552.1,0.00049862,120]
[357136670,1743781844613,-500.0,0.00049862,120]
[357136671,1743781844623,-540.93,0.00049862,120]
[357136672,1743781844633,-500.0,0.00049862,120]
[357136673,1743781844643,-500.0,0.00049862,120]
[357136674,1743781844654,-1894.82,0.00049862,7]
[357136675,1743781844663,-729.63,0.00049862,120]
[357136676,1743781844674,-169.91980135,0.00049862,120]
[357136677,1743781844684,-910.78,0.00049862,120]
[357136678,1743781844694,-500.0,0.00049862,120]
[357136679,1743781844704,-500.0,0.00049862,120]
[357136680,1743781844715,-500.00000001,0.00049862,120]
[357136681,1743781844725,-500.0,0.00049862,120]
[357136682,1743781844735,-500.0,0.00049862,120]
[357136683,1743781844744,-946.75,0.00049862,120]
[357136684,1743781844755,-1029.62,0.00049862,120]
[357136685,1743781844765,-500.0,0.00049862,120]
[357136686,1743781844775,-168.03062015,0.00049862,120]